[Event "Late-Titled-Tuesday-Blitz-May-14-2024"]
[Site "Chess.com"]
[Date "2024.05.14"]
[Round "11"]
[White "GoltsevDmitry2000"]
[Black "Romkachess"]
[Result "1-0"]
[WhiteElo "2744"]
[BlackElo "2587"]
[TimeControl "180+1"]
[EndTime "16:02:45 PDT"]
[Termination "GoltsevDmitry2000 won by checkmate"]

1. e4 {[%clk 0:03:00.1]} 1... c5 {[%clk 0:02:55.7]} 2. Nf3 {[%clk 0:03:00.3]}
2... d6 {[%clk 0:02:53.7]} 3. d4 {[%clk 0:03:00.7]} 3... cxd4 {[%clk 0:02:52.4]}
4. Nxd4 {[%clk 0:03:01.6]} 4... Nf6 {[%clk 0:02:52.4]} 5. Nc3 {[%clk 0:03:02.1]}
5... a6 {[%clk 0:02:51.1]} 6. Be2 {[%clk 0:03:01]} 6... e5 {[%clk 0:02:48.7]} 7.
Nf5 {[%clk 0:03:01.5]} 7... g6 {[%clk 0:02:30.7]} 8. Ne3 {[%clk 0:02:58.8]} 8...
Bg7 {[%clk 0:02:29.5]} 9. Ned5 {[%clk 0:02:57.3]} 9... O-O {[%clk 0:02:26.5]}
10. Bg5 {[%clk 0:02:56.2]} 10... Nbd7 {[%clk 0:02:26.2]} 11. Qd2 {[%clk
0:02:52.3]} 11... b5 {[%clk 0:02:16.6]} 12. h4 {[%clk 0:02:47.2]} 12... Bb7
{[%clk 0:01:27.7]} 13. h5 {[%clk 0:02:46.4]} 13... Nc5 {[%clk 0:01:15.6]} 14. f3
{[%clk 0:02:30.5]} 14... Ne6 {[%clk 0:00:46.3]} 15. Bh4 {[%clk 0:02:26.5]} 15...
g5 {[%clk 0:00:38.2]} 16. Bf2 {[%clk 0:02:13.2]} 16... Nf4 {[%clk 0:00:25.6]}
17. Nxf4 {[%clk 0:02:07.3]} 17... gxf4 {[%clk 0:00:22.6]} 18. h6 {[%clk
0:02:05.2]} 18... Bh8 {[%clk 0:00:22.4]} 19. Bh4 {[%clk 0:02:05.3]} 19... Qc7
{[%clk 0:00:18.2]} 20. g3 {[%clk 0:02:04.3]} 20... Rfe8 {[%clk 0:00:13.3]} 21.
gxf4 {[%clk 0:02:04.6]} 21... d5 {[%clk 0:00:14]} 22. fxe5 {[%clk 0:01:57.6]}
22... Qxe5 {[%clk 0:00:12.5]} 23. f4 {[%clk 0:01:57]} 23... Qc7 {[%clk
0:00:05.1]} 24. e5 {[%clk 0:01:57.3]} 24... d4 {[%clk 0:00:04.4]} 25. Rg1+
{[%clk 0:01:47.4]} 25... Kf8 {[%clk 0:00:04.5]} 26. Qxd4 {[%clk 0:01:48.1]}
26... Rad8 {[%clk 0:00:04.6]} 27. Qb4+ {[%clk 0:01:47.2]} 27... Qe7 {[%clk
0:00:03.8]} 28. Qxe7+ {[%clk 0:01:41]} 28... Rxe7 {[%clk 0:00:04.1]} 29. exf6
{[%clk 0:01:37.8]} 29... Re3 {[%clk 0:00:03.8]} 30. Kf2 {[%clk 0:01:30.5]} 30...
Rh3 {[%clk 0:00:03.7]} 31. Bg5 {[%clk 0:01:25.9]} 31... Rh2+ {[%clk 0:00:03.5]}
32. Kg3 {[%clk 0:01:26.1]} 32... Rxe2 {[%clk 0:00:01.7]} 33. Nxe2 {[%clk
0:01:27]} 33... Re8 {[%clk 0:00:02]} 34. Kf2 {[%clk 0:01:25.1]} 34... Re4 {[%clk
0:00:02]} 35. Rad1 {[%clk 0:01:25]} 35... Ke8 {[%clk 0:00:02]} 36. Rd4 {[%clk
0:01:24.4]} 36... Re6 {[%clk 0:00:01.7]} 37. Rgd1 {[%clk 0:01:24.3]} 37... Bxf6
{[%clk 0:00:01.9]} 38. Rd8+ {[%clk 0:01:23]} 38... Bxd8 {[%clk 0:00:01.2]} 39.
Rxd8# {[%clk 0:01:23.4]} 1-0

[Event "Late-Titled-Tuesday-Blitz-May-14-2024"]
[Site "Chess.com"]
[Date "2024.05.14"]
[Round "11"]
[White "Cambek64"]
[Black "bazar-wokzal"]
[Result "0-1"]
[WhiteElo "2488"]
[BlackElo "2599"]
[TimeControl "180+1"]
[EndTime "16:02:50 PDT"]
[Termination "bazar-wokzal won on time"]

1. e4 {[%clk 0:00:43.1]} 1... c5 {[%clk 0:02:57.2]} 2. Nc3 {[%clk 0:00:42.4]}
2... g6 {[%clk 0:02:56.5]} 3. f4 {[%clk 0:00:41.1]} 3... Bg7 {[%clk 0:02:55.3]}
4. Nf3 {[%clk 0:00:41.8]} 4... Nc6 {[%clk 0:02:53.4]} 5. Bc4 {[%clk 0:00:41.5]}
5... e6 {[%clk 0:02:44.3]} 6. d3 {[%clk 0:00:41.6]} 6... a6 {[%clk 0:02:44.1]}
7. O-O {[%clk 0:00:41.3]} 7... b5 {[%clk 0:02:43.7]} 8. Bb3 {[%clk 0:00:40.8]}
8... Na5 {[%clk 0:02:43.2]} 9. Kh1 {[%clk 0:00:30]} 9... Ne7 {[%clk 0:02:41.2]}
10. Qe1 {[%clk 0:00:28.2]} 10... Nxb3 {[%clk 0:02:40.4]} 11. axb3 {[%clk
0:00:27.6]} 11... Bb7 {[%clk 0:02:41.1]} 12. e5 {[%clk 0:00:25.9]} 12... d5
{[%clk 0:02:38.7]} 13. exd6 {[%clk 0:00:22.3]} 13... Qxd6 {[%clk 0:02:37.7]} 14.
Ne4 {[%clk 0:00:22.9]} 14... Qc7 {[%clk 0:02:33.3]} 15. c4 {[%clk 0:00:20.4]}
15... O-O {[%clk 0:02:31.2]} 16. Ne5 {[%clk 0:00:19.1]} 16... Bxe4 {[%clk
0:02:18.2]} 17. Qxe4 {[%clk 0:00:17.9]} 17... f5 {[%clk 0:02:18.1]} 18. Qe2
{[%clk 0:00:17.3]} 18... Bxe5 {[%clk 0:02:17.9]} 19. fxe5 {[%clk 0:00:15.5]}
19... Nc6 {[%clk 0:02:18.2]} 20. Bf4 {[%clk 0:00:08.8]} 20... Nd4 {[%clk
0:02:15.7]} 21. Qf2 {[%clk 0:00:07.6]} 21... Nxb3 {[%clk 0:02:13.4]} 22. Rae1
{[%clk 0:00:08.2]} 22... Rad8 {[%clk 0:02:08.3]} 23. Re3 {[%clk 0:00:08.7]}
23... Rd4 {[%clk 0:02:00.5]} 24. Bg5 {[%clk 0:00:08.1]} 24... Rxc4 {[%clk
0:01:51.1]} 25. dxc4 {[%clk 0:00:06.9]} 25... bxc4 {[%clk 0:01:50.9]} 26. Bf6
{[%clk 0:00:05.8]} 26... Nd4 {[%clk 0:01:48.4]} 27. Rh3 {[%clk 0:00:05.2]} 27...
Rb8 {[%clk 0:01:44.6]} 28. Rc1 {[%clk 0:00:03]} 28... Rb4 {[%clk 0:01:43.7]} 29.
Rhc3 {[%clk 0:00:03.1]} 29... Qa5 {[%clk 0:01:41.2]} 30. h3 {[%clk 0:00:02.4]}
30... Qa2 {[%clk 0:01:30]} 31. Qh4 {[%clk 0:00:01.7]} 31... f4 {[%clk
0:01:25.3]} 32. Qh6 {[%clk 0:00:02.3]} 32... Nf5 {[%clk 0:01:24.6]} 33. Qxf4
{[%clk 0:00:01.3]} 33... Rxb2 {[%clk 0:01:25]} 34. Rxc4 {[%clk 0:00:01.1]} 34...
Rxg2 {[%clk 0:01:24.4]} 35. Rxc5 {[%clk 0:00:01.2]} 35... Ng3+ {[%clk
0:01:24.4]} 0-1

[Event "Late-Titled-Tuesday-Blitz-May-14-2024"]
[Site "Chess.com"]
[Date "2024.05.14"]
[Round "11"]
[White "Statham_01"]
[Black "OK97"]
[Result "1-0"]
[WhiteElo "2655"]
[BlackElo "2842"]
[TimeControl "180+1"]
[EndTime "16:02:53 PDT"]
[Termination "Statham_01 won by checkmate"]

1. e4 {[%clk 0:03:00.9]} 1... c5 {[%clk 0:03:00.1]} 2. a3 {[%clk 0:03:00.7]}
2... g6 {[%clk 0:02:58.9]} 3. Nf3 {[%clk 0:03:00.1]} 3... Bg7 {[%clk 0:02:58.7]}
4. c3 {[%clk 0:03:00.1]} 4... d5 {[%clk 0:02:56]} 5. e5 {[%clk 0:03:00.4]} 5...
Bg4 {[%clk 0:02:48.8]} 6. d4 {[%clk 0:02:59.9]} 6... cxd4 {[%clk 0:02:42.5]} 7.
Bb5+ {[%clk 0:02:59.2]} 7... Nc6 {[%clk 0:02:38]} 8. cxd4 {[%clk 0:02:51.3]}
8... Nh6 {[%clk 0:02:33.3]} 9. Nbd2 {[%clk 0:02:44.9]} 9... Bxf3 {[%clk
0:02:28.4]} 10. Bxc6+ {[%clk 0:02:44.7]} 10... bxc6 {[%clk 0:02:28.6]} 11. Nxf3
{[%clk 0:02:45.4]} 11... O-O {[%clk 0:02:24.8]} 12. O-O {[%clk 0:02:44.2]} 12...
f6 {[%clk 0:02:22.2]} 13. exf6 {[%clk 0:02:40.2]} 13... exf6 {[%clk 0:02:20.4]}
14. Bf4 {[%clk 0:02:38]} 14... g5 {[%clk 0:02:17.9]} 15. Bg3 {[%clk 0:02:31.5]}
15... Nf5 {[%clk 0:02:12.8]} 16. Qc2 {[%clk 0:02:29.2]} 16... Qd7 {[%clk
0:02:12.9]} 17. Rac1 {[%clk 0:02:26.7]} 17... Rac8 {[%clk 0:02:12.8]} 18. Rfe1
{[%clk 0:02:23.8]} 18... h5 {[%clk 0:02:09.6]} 19. h4 {[%clk 0:02:07.7]} 19...
g4 {[%clk 0:02:08.1]} 20. Nd2 {[%clk 0:01:57]} 20... Nxd4 {[%clk 0:02:01.4]} 21.
Qd3 {[%clk 0:01:55.4]} 21... Nf5 {[%clk 0:01:56.6]} 22. Ne4 {[%clk 0:01:51]}
22... Qf7 {[%clk 0:01:32.8]} 23. Nd6 {[%clk 0:01:28.6]} 23... Nxd6 {[%clk
0:01:31.8]} 24. Bxd6 {[%clk 0:01:29.5]} 24... Rfe8 {[%clk 0:01:31.8]} 25. Qf5
{[%clk 0:01:26.7]} 25... Bh6 {[%clk 0:01:13.5]} 26. Rxe8+ {[%clk 0:00:56]} 26...
Rxe8 {[%clk 0:01:12.9]} 27. Rxc6 {[%clk 0:00:46.7]} 27... Bg7 {[%clk 0:00:52.5]}
28. Rc7 {[%clk 0:00:38.5]} 28... Re1+ {[%clk 0:00:44]} 29. Kh2 {[%clk
0:00:37.6]} 29... Qe6 {[%clk 0:00:44.7]} 30. Rc8+ {[%clk 0:00:29.5]} 30... Kf7
{[%clk 0:00:37.1]} 31. Qxh5# {[%clk 0:00:29.2]} 1-0

[Event "Late-Titled-Tuesday-Blitz-May-14-2024"]
[Site "Chess.com"]
[Date "2024.05.14"]
[Round "11"]
[White "bubeliang"]
[Black "karinachess1"]
[Result "1-0"]
[WhiteElo "2802"]
[BlackElo "2626"]
[TimeControl "180+1"]
[EndTime "16:02:54 PDT"]
[Termination "bubeliang won by resignation"]

1. e4 {[%clk 0:02:59.7]} 1... e5 {[%clk 0:03:00]} 2. Nf3 {[%clk 0:02:59.4]} 2...
Nc6 {[%clk 0:03:00.3]} 3. Bc4 {[%clk 0:02:59.8]} 3... Bc5 {[%clk 0:02:57.9]} 4.
c3 {[%clk 0:02:59.2]} 4... Nf6 {[%clk 0:02:57.9]} 5. d3 {[%clk 0:02:58.1]} 5...
O-O {[%clk 0:02:55.5]} 6. O-O {[%clk 0:02:58.3]} 6... a6 {[%clk 0:02:55.9]} 7.
a4 {[%clk 0:02:56.2]} 7... d6 {[%clk 0:02:47.8]} 8. Re1 {[%clk 0:02:55.1]} 8...
h6 {[%clk 0:02:48.3]} 9. h3 {[%clk 0:02:54.6]} 9... Ba7 {[%clk 0:02:47.6]} 10.
Nbd2 {[%clk 0:02:53.3]} 10... Ne7 {[%clk 0:02:48]} 11. Nf1 {[%clk 0:02:52.6]}
11... Ng6 {[%clk 0:02:48.4]} 12. Ng3 {[%clk 0:02:52.6]} 12... c6 {[%clk
0:02:49]} 13. Bb3 {[%clk 0:02:52.1]} 13... Qc7 {[%clk 0:02:46]} 14. Bc2 {[%clk
0:02:52.3]} 14... d5 {[%clk 0:02:39]} 15. d4 {[%clk 0:02:50.5]} 15... dxe4
{[%clk 0:02:33.5]} 16. Nxe4 {[%clk 0:02:47]} 16... Nxe4 {[%clk 0:02:32.4]} 17.
Rxe4 {[%clk 0:02:46.7]} 17... f5 {[%clk 0:02:28.4]} 18. Rxe5 {[%clk 0:02:46.3]}
18... Nxe5 {[%clk 0:02:25.2]} 19. Nxe5 {[%clk 0:02:47.2]} 19... Be6 {[%clk
0:02:15.1]} 20. Bf4 {[%clk 0:02:46.2]} 20... Qd8 {[%clk 0:02:10.9]} 21. Qh5
{[%clk 0:02:44.2]} 21... Qf6 {[%clk 0:02:07.5]} 22. Re1 {[%clk 0:02:34.2]} 22...
Rae8 {[%clk 0:02:01.9]} 23. Re3 {[%clk 0:02:33.5]} 23... Bf7 {[%clk 0:01:53.5]}
24. Nxf7 {[%clk 0:02:02]} 24... Qxf7 {[%clk 0:01:44.9]} 25. Bb3 {[%clk
0:01:41.6]} 25... Qxb3 {[%clk 0:01:34.3]} 26. Rxe8 {[%clk 0:01:41.4]} 26... Rxe8
{[%clk 0:01:21.6]} 27. Qxe8+ {[%clk 0:01:42.3]} 27... Kh7 {[%clk 0:01:22.5]} 28.
Be5 {[%clk 0:01:29.4]} 28... Qg8 {[%clk 0:01:06]} 29. Qd7 {[%clk 0:01:24.9]}
29... Bb8 {[%clk 0:01:04.8]} 30. Qxf5+ {[%clk 0:01:20.3]} 30... Kh8 {[%clk
0:01:05]} 31. Qd7 {[%clk 0:01:20.7]} 31... c5 {[%clk 0:00:45.4]} 32. Qxb7 {[%clk
0:01:16.8]} 32... Bxe5 {[%clk 0:00:44.7]} 33. dxe5 {[%clk 0:01:16.7]} 33... Qc4
{[%clk 0:00:34.5]} 34. Qf3 {[%clk 0:01:10]} 34... a5 {[%clk 0:00:18.5]} 35. Qf8+
{[%clk 0:01:08.8]} 35... Kh7 {[%clk 0:00:18.4]} 36. Qf5+ {[%clk 0:01:09.3]}
36... Kg8 {[%clk 0:00:18.1]} 37. e6 {[%clk 0:01:09.3]} 37... Qe2 {[%clk
0:00:18.5]} 38. Qf7+ {[%clk 0:01:07.5]} 38... Kh7 {[%clk 0:00:19.2]} 39. e7
{[%clk 0:01:08.4]} 39... Qe1+ {[%clk 0:00:19.5]} 40. Kh2 {[%clk 0:01:08.8]}
40... Qe5+ {[%clk 0:00:20.1]} 41. g3 {[%clk 0:01:09.2]} 1-0

[Event "Late-Titled-Tuesday-Blitz-May-14-2024"]
[Site "Chess.com"]
[Date "2024.05.14"]
[Round "11"]
[White "AlexeiShirov"]
[Black "GelmanAlexander"]
[Result "1-0"]
[WhiteElo "2910"]
[BlackElo "2682"]
[TimeControl "180+1"]
[EndTime "16:02:58 PDT"]
[Termination "AlexeiShirov won by resignation"]

1. e4 {[%clk 0:03:00.9]} 1... c5 {[%clk 0:03:00.1]} 2. Nf3 {[%clk 0:02:59.7]}
2... e6 {[%clk 0:03:00.5]} 3. d4 {[%clk 0:02:59.2]} 3... cxd4 {[%clk 0:03:00.7]}
4. Nxd4 {[%clk 0:02:58.8]} 4... a6 {[%clk 0:03:00.9]} 5. c4 {[%clk 0:02:58.3]}
5... d6 {[%clk 0:03:00.3]} 6. Nc3 {[%clk 0:02:57.2]} 6... b6 {[%clk 0:02:56.9]}
7. Be3 {[%clk 0:02:54.7]} 7... Bb7 {[%clk 0:02:57.3]} 8. Rc1 {[%clk 0:02:52.8]}
8... Nd7 {[%clk 0:02:57.4]} 9. Be2 {[%clk 0:02:46.8]} 9... Ngf6 {[%clk
0:02:56.3]} 10. f3 {[%clk 0:02:46.3]} 10... h6 {[%clk 0:02:55.2]} 11. g4 {[%clk
0:02:43.4]} 11... Rc8 {[%clk 0:02:24.9]} 12. h4 {[%clk 0:02:39.4]} 12... Ne5
{[%clk 0:02:23.1]} 13. b3 {[%clk 0:02:37.2]} 13... g6 {[%clk 0:02:20.7]} 14. Kf2
{[%clk 0:02:34.2]} 14... Bg7 {[%clk 0:02:05.8]} 15. g5 {[%clk 0:02:33.5]} 15...
hxg5 {[%clk 0:02:01.3]} 16. hxg5 {[%clk 0:02:32.7]} 16... Rxh1 {[%clk
0:01:57.2]} 17. Qxh1 {[%clk 0:02:31.4]} 17... Nfd7 {[%clk 0:01:46.9]} 18. f4
{[%clk 0:02:04.6]} 18... Nc6 {[%clk 0:01:45]} 19. Rd1 {[%clk 0:02:03.7]} 19...
Nxd4 {[%clk 0:01:25]} 20. Bxd4 {[%clk 0:02:02.5]} 20... e5 {[%clk 0:01:24.8]}
21. fxe5 {[%clk 0:01:47]} 21... Nxe5 {[%clk 0:01:24.6]} 22. Be3 {[%clk
0:01:37.1]} 22... Qe7 {[%clk 0:00:56]} 23. Nd5 {[%clk 0:01:29.2]} 23... Bxd5
{[%clk 0:00:55.4]} 24. Rxd5 {[%clk 0:01:28.5]} 24... b5 {[%clk 0:00:48.3]} 25.
cxb5 {[%clk 0:01:24.5]} 25... axb5 {[%clk 0:00:48.8]} 26. Qd1 {[%clk 0:01:20.8]}
26... Rc3 {[%clk 0:00:27.5]} 27. Rxd6 {[%clk 0:01:12]} 27... Qc7 {[%clk
0:00:25.9]} 28. Bb6 {[%clk 0:00:53.8]} 28... Qb7 {[%clk 0:00:01.9]} 29. Rd8+
{[%clk 0:00:52.4]} 1-0

[Event "Late-Titled-Tuesday-Blitz-May-14-2024"]
[Site "Chess.com"]
[Date "2024.05.14"]
[Round "11"]
[White "emiliocordova"]
[Black "jefferyx"]
[Result "0-1"]
[WhiteElo "2912"]
[BlackElo "3086"]
[TimeControl "180+1"]
[EndTime "16:03:13 PDT"]
[Termination "jefferyx won by resignation"]

1. d4 {[%clk 0:02:21.1]} 1... g6 {[%clk 0:03:00.9]} 2. Nf3 {[%clk 0:02:20.7]}
2... Bg7 {[%clk 0:03:00.9]} 3. g3 {[%clk 0:02:21.2]} 3... d6 {[%clk 0:03:00.5]}
4. Bg2 {[%clk 0:02:21.8]} 4... Nc6 {[%clk 0:03:01]} 5. O-O {[%clk 0:02:22.4]}
5... Bd7 {[%clk 0:03:01.6]} 6. c4 {[%clk 0:02:21.9]} 6... Qc8 {[%clk 0:03:02]}
7. Nc3 {[%clk 0:02:22.2]} 7... Bh3 {[%clk 0:03:01.8]} 8. d5 {[%clk 0:02:21.7]}
8... Ne5 {[%clk 0:03:01.8]} 9. Bf4 {[%clk 0:02:15.5]} 9... h5 {[%clk 0:02:47.7]}
10. Bxe5 {[%clk 0:02:13.7]} 10... dxe5 {[%clk 0:02:48.6]} 11. c5 {[%clk
0:02:01.5]} 11... Kf8 {[%clk 0:02:29]} 12. e4 {[%clk 0:01:55.6]} 12... h4 {[%clk
0:02:21.5]} 13. Qe2 {[%clk 0:01:04]} 13... Bxg2 {[%clk 0:02:21.5]} 14. Kxg2
{[%clk 0:01:04]} 14... hxg3 {[%clk 0:02:22.2]} 15. fxg3 {[%clk 0:01:03.7]} 15...
Qh3+ {[%clk 0:02:22.6]} 16. Kg1 {[%clk 0:01:03.1]} 16... Bf6 {[%clk 0:02:22.3]}
17. Qg2 {[%clk 0:01:00.9]} 17... Qg4 {[%clk 0:02:20.9]} 18. Rae1 {[%clk
0:00:58.7]} 18... Rd8 {[%clk 0:02:13.1]} 19. Qf2 {[%clk 0:00:57.2]} 19... Rh5
{[%clk 0:02:06.6]} 20. Re3 {[%clk 0:00:50.5]} 20... Nh6 {[%clk 0:02:05.3]} 21.
Ne1 {[%clk 0:00:47.9]} 21... Qc8 {[%clk 0:01:38.5]} 22. Qf3 {[%clk 0:00:40.5]}
22... c6 {[%clk 0:01:21]} 23. d6 {[%clk 0:00:40]} 23... Qe6 {[%clk 0:01:07.7]}
24. Re2 {[%clk 0:00:37.8]} 24... Kg7 {[%clk 0:01:07]} 25. Nd5 {[%clk 0:00:23]}
25... cxd5 {[%clk 0:01:00.1]} 26. exd5 {[%clk 0:00:23.9]} 26... Qc8 {[%clk
0:00:59]} 27. Nd3 {[%clk 0:00:20.4]} 27... Rf5 {[%clk 0:00:56.5]} 28. Qg2 {[%clk
0:00:19.6]} 28... Rxf1+ {[%clk 0:00:52.2]} 29. Qxf1 {[%clk 0:00:20.5]} 29...
exd6 {[%clk 0:00:52.6]} 30. b4 {[%clk 0:00:13.3]} 30... dxc5 {[%clk 0:00:51.5]}
31. Nxc5 {[%clk 0:00:14.2]} 31... Rxd5 {[%clk 0:00:48.4]} 32. Ne4 {[%clk
0:00:10.3]} 32... Bd8 {[%clk 0:00:36.4]} 0-1

[Event "Late-Titled-Tuesday-Blitz-May-14-2024"]
[Site "Chess.com"]
[Date "2024.05.14"]
[Round "11"]
[White "yaguigor"]
[Black "angelgab3"]
[Result "0-1"]
[WhiteElo "2583"]
[BlackElo "2736"]
[TimeControl "180+1"]
[EndTime "16:03:14 PDT"]
[Termination "angelgab3 won by resignation"]

1. e4 {[%clk 0:03:00.9]} 1... e5 {[%clk 0:02:57.1]} 2. Nf3 {[%clk 0:02:59.7]}
2... Nc6 {[%clk 0:02:57.6]} 3. Bb5 {[%clk 0:02:59]} 3... Bc5 {[%clk 0:02:55.5]}
4. c3 {[%clk 0:02:58.2]} 4... Nf6 {[%clk 0:02:53]} 5. O-O {[%clk 0:02:56.5]}
5... O-O {[%clk 0:02:50.4]} 6. d4 {[%clk 0:02:56]} 6... Bb6 {[%clk 0:02:50.9]}
7. Bg5 {[%clk 0:02:54.1]} 7... h6 {[%clk 0:02:50.7]} 8. Bh4 {[%clk 0:02:53.9]}
8... d6 {[%clk 0:02:51.2]} 9. Qd3 {[%clk 0:02:53.1]} 9... g5 {[%clk 0:02:51.2]}
10. Bg3 {[%clk 0:02:51.9]} 10... Nh5 {[%clk 0:02:51.1]} 11. Nbd2 {[%clk
0:02:11.5]} 11... g4 {[%clk 0:02:34.5]} 12. Nh4 {[%clk 0:01:34]} 12... exd4
{[%clk 0:02:32.5]} 13. Bxc6 {[%clk 0:01:33.1]} 13... bxc6 {[%clk 0:02:33.4]} 14.
cxd4 {[%clk 0:01:31.7]} 14... a5 {[%clk 0:01:58.7]} 15. Rfe1 {[%clk 0:01:28.3]}
15... Qg5 {[%clk 0:01:55.7]} 16. Qe3 {[%clk 0:01:21.7]} 16... Qxe3 {[%clk
0:01:53.1]} 17. fxe3 {[%clk 0:01:20.9]} 17... Nxg3 {[%clk 0:01:53.5]} 18. hxg3
{[%clk 0:01:20.1]} 18... Re8 {[%clk 0:01:53.3]} 19. Rac1 {[%clk 0:01:17.5]}
19... Bd7 {[%clk 0:01:44.2]} 20. Rf1 {[%clk 0:01:11.8]} 20... a4 {[%clk
0:01:37.5]} 21. a3 {[%clk 0:01:08.5]} 21... Ra5 {[%clk 0:01:35.3]} 22. Rf4
{[%clk 0:01:06.7]} 22... Rb5 {[%clk 0:01:27.3]} 23. Rc2 {[%clk 0:01:00.9]} 23...
h5 {[%clk 0:01:17.5]} 24. Nc4 {[%clk 0:00:24.1]} 24... Ba7 {[%clk 0:01:16.5]}
25. Kf2 {[%clk 0:00:21.1]} 25... Reb8 {[%clk 0:01:11.5]} 26. Nf5 {[%clk
0:00:20.2]} 26... Be6 {[%clk 0:01:09]} 27. Ne7+ {[%clk 0:00:18.9]} 27... Kg7
{[%clk 0:00:42.6]} 28. Nxc6 {[%clk 0:00:19.8]} 28... Bxc4 {[%clk 0:00:42.9]} 29.
Nxb8 {[%clk 0:00:15]} 29... Bb3 {[%clk 0:00:42.8]} 30. Rxc7 {[%clk 0:00:13.5]}
30... Bxb8 {[%clk 0:00:42.8]} 31. Rc8 {[%clk 0:00:06.6]} 31... Be6 {[%clk
0:00:39.2]} 32. d5 {[%clk 0:00:06.9]} 32... Bxc8 {[%clk 0:00:38.6]} 0-1

[Event "Late-Titled-Tuesday-Blitz-May-14-2024"]
[Site "Chess.com"]
[Date "2024.05.14"]
[Round "11"]
[White "AccioChess"]
[Black "alexrustemov"]
[Result "0-1"]
[WhiteElo "2497"]
[BlackElo "2883"]
[TimeControl "180+1"]
[EndTime "16:03:14 PDT"]
[Termination "alexrustemov won on time"]

1. e4 {[%clk 0:03:00.9]} 1... e6 {[%clk 0:02:59.8]} 2. d4 {[%clk 0:02:59.8]}
2... d5 {[%clk 0:03:00.3]} 3. Nd2 {[%clk 0:02:59.6]} 3... dxe4 {[%clk
0:03:00.4]} 4. Nxe4 {[%clk 0:02:59.5]} 4... Bd7 {[%clk 0:03:00.9]} 5. Nf3 {[%clk
0:02:59.1]} 5... Bc6 {[%clk 0:03:01.4]} 6. Bd3 {[%clk 0:02:59.3]} 6... Nd7
{[%clk 0:03:01.9]} 7. O-O {[%clk 0:02:58.5]} 7... Ngf6 {[%clk 0:03:02.4]} 8. Qe2
{[%clk 0:02:58.8]} 8... Nxe4 {[%clk 0:03:01.1]} 9. Bxe4 {[%clk 0:02:59.2]} 9...
Bxe4 {[%clk 0:03:01.6]} 10. Qxe4 {[%clk 0:03:00]} 10... c6 {[%clk 0:03:01.8]}
11. c4 {[%clk 0:02:56.5]} 11... Be7 {[%clk 0:03:02]} 12. b3 {[%clk 0:02:56.4]}
12... O-O {[%clk 0:03:02.2]} 13. Bb2 {[%clk 0:02:56.8]} 13... Re8 {[%clk
0:03:02.1]} 14. Rad1 {[%clk 0:02:56.7]} 14... Qa5 {[%clk 0:03:01.9]} 15. a4
{[%clk 0:02:35.5]} 15... Rad8 {[%clk 0:02:58.4]} 16. h3 {[%clk 0:02:30.2]} 16...
h6 {[%clk 0:02:56]} 17. Rd3 {[%clk 0:02:18.6]} 17... Bf6 {[%clk 0:02:53.8]} 18.
Rfd1 {[%clk 0:02:16.9]} 18... Nf8 {[%clk 0:02:45.7]} 19. Ne5 {[%clk 0:02:08.2]}
19... Qc7 {[%clk 0:02:39.7]} 20. f4 {[%clk 0:01:45.9]} 20... g6 {[%clk
0:02:33.9]} 21. Kh2 {[%clk 0:01:28.6]} 21... Bg7 {[%clk 0:02:32.8]} 22. R1d2
{[%clk 0:01:10.9]} 22... Nd7 {[%clk 0:02:31.6]} 23. Qf3 {[%clk 0:00:40.6]} 23...
a6 {[%clk 0:02:21.6]} 24. g4 {[%clk 0:00:29.7]} 24... g5 {[%clk 0:02:15.9]} 25.
Kg2 {[%clk 0:00:24.3]} 25... gxf4 {[%clk 0:02:13.6]} 26. Qxf4 {[%clk 0:00:24.7]}
26... Nxe5 {[%clk 0:01:42.2]} 27. dxe5 {[%clk 0:00:25.6]} 27... Rxd3 {[%clk
0:01:40.9]} 28. Rxd3 {[%clk 0:00:26.5]} 28... b5 {[%clk 0:01:34.1]} 29. c5
{[%clk 0:00:23.5]} 29... bxa4 {[%clk 0:01:25.9]} 30. bxa4 {[%clk 0:00:24.4]}
30... Qb7 {[%clk 0:01:24.4]} 31. Bc1 {[%clk 0:00:14.9]} 31... Qb1 {[%clk
0:01:23.3]} 32. Rd6 {[%clk 0:00:13]} 32... Qc2+ {[%clk 0:01:18.7]} 33. Kh1
{[%clk 0:00:04.9]} 33... Qxc5 {[%clk 0:01:18.8]} 34. Rd7 {[%clk 0:00:03.9]}
34... Rf8 {[%clk 0:01:15.5]} 35. Bb2 {[%clk 0:00:04.2]} 35... Qc2 {[%clk
0:00:58.4]} 36. Bd4 {[%clk 0:00:01.3]} 36... Qxa4 {[%clk 0:00:55.1]} 37. Bc5
{[%clk 0:00:00.9]} 37... Qxf4 {[%clk 0:00:54.1]} 0-1

[Event "Late-Titled-Tuesday-Blitz-May-14-2024"]
[Site "Chess.com"]
[Date "2024.05.14"]
[Round "11"]
[White "WPWPWP-2015"]
[Black "GlavkonVVS"]
[Result "1-0"]
[WhiteElo "2481"]
[BlackElo "2616"]
[TimeControl "180+1"]
[EndTime "16:03:18 PDT"]
[Termination "WPWPWP-2015 won by checkmate"]

1. e4 {[%clk 0:03:00.9]} 1... Nf6 {[%clk 0:02:59.7]} 2. Nc3 {[%clk 0:02:59.2]}
2... d5 {[%clk 0:02:59.5]} 3. e5 {[%clk 0:02:58.7]} 3... Nfd7 {[%clk 0:02:59.8]}
4. f4 {[%clk 0:02:57.1]} 4... e6 {[%clk 0:02:59.9]} 5. Nf3 {[%clk 0:02:56.1]}
5... c5 {[%clk 0:03:00.5]} 6. Bb5 {[%clk 0:02:54.6]} 6... a6 {[%clk 0:02:59.4]}
7. Bxd7+ {[%clk 0:02:54.6]} 7... Bxd7 {[%clk 0:02:58.1]} 8. d3 {[%clk 0:02:55]}
8... Nc6 {[%clk 0:02:58.1]} 9. O-O {[%clk 0:02:54.4]} 9... Be7 {[%clk
0:02:53.2]} 10. f5 {[%clk 0:02:54.3]} 10... d4 {[%clk 0:02:45.9]} 11. Ne4 {[%clk
0:02:47.9]} 11... exf5 {[%clk 0:02:44.9]} 12. Nd6+ {[%clk 0:02:47.6]} 12... Bxd6
{[%clk 0:02:45.1]} 13. exd6 {[%clk 0:02:48.5]} 13... O-O {[%clk 0:02:43.2]} 14.
Bf4 {[%clk 0:02:26.4]} 14... f6 {[%clk 0:02:42.3]} 15. h4 {[%clk 0:02:24.4]}
15... h6 {[%clk 0:02:24.9]} 16. h5 {[%clk 0:02:11.1]} 16... Qe8 {[%clk
0:02:24.6]} 17. Nh4 {[%clk 0:02:06.9]} 17... Qf7 {[%clk 0:02:22]} 18. Ng6 {[%clk
0:02:01.9]} 18... Rfe8 {[%clk 0:02:21.9]} 19. Qf3 {[%clk 0:01:58.3]} 19... Kh7
{[%clk 0:02:01.3]} 20. Rae1 {[%clk 0:01:51.8]} 20... Qxa2 {[%clk 0:01:55.8]} 21.
b3 {[%clk 0:01:43.2]} 21... Qxc2 {[%clk 0:01:54.9]} 22. Qd5 {[%clk 0:01:43.2]}
22... Qxd3 {[%clk 0:01:31]} 23. Qf7 {[%clk 0:01:30.2]} 23... Rad8 {[%clk
0:01:25]} 24. Re7 {[%clk 0:01:22.7]} 24... Rxe7 {[%clk 0:01:10.1]} 25. dxe7
{[%clk 0:01:18.1]} 25... Nxe7 {[%clk 0:00:56]} 26. Qxe7 {[%clk 0:01:16.6]} 26...
Bb5 {[%clk 0:00:54.4]} 27. Rf3 {[%clk 0:01:06.6]} 27... Qd1+ {[%clk 0:00:51.5]}
28. Kh2 {[%clk 0:01:06.1]} 28... Re8 {[%clk 0:00:51.9]} 29. Qf7 {[%clk 0:00:51]}
29... Bc6 {[%clk 0:00:42.7]} 30. Bxh6 {[%clk 0:00:32.4]} 30... Kxh6 {[%clk
0:00:35.5]} 31. Nf8 {[%clk 0:00:32.4]} 31... Kg5 {[%clk 0:00:09]} 32. Qg6+
{[%clk 0:00:32.1]} 32... Kh4 {[%clk 0:00:08.8]} 33. g3# {[%clk 0:00:32.1]} 1-0